[Event "NJSK 2026 Meisjes A"]
[Site "Helmond, Netherlands"]
[Date "2026.04.29"]
[Round "5.4"]
[White "Kulikova, Polina"]
[Black "Gergin, Isafara"]
[Result "1-0"]
[TimeControl "90min/40moves + 30min + 30sec/move"]
[WhiteTitle "-"]
[BlackTitle "-"]
[WhiteFideId "1085921"]
[BlackFideId "1082167"]
[WhiteElo "1766"]
[BlackElo "1915"]

1. d4 {[%clk 01:30:58]} {[%emt 00:00:02]} d5 {[%clk 01:30:55]} {[%emt
00:00:05]} 2. c4 {[%clk 01:31:26]} {[%emt 00:00:03]} e6 {[%clk 01:31:19]}
{[%emt 00:00:06]} 3. Nc3 {[%clk 01:31:53]} {[%emt 00:00:02]} Nf6 {[%clk
01:31:38]} {[%emt 00:00:12]} 4. cxd5 {[%clk 01:32:16]} {[%emt 00:00:07]} exd5
{[%clk 01:32:03]} {[%emt 00:00:05]} 5. Bg5 {[%clk 01:32:40]} {[%emt 00:00:06]}
c6 {[%clk 01:32:27]} {[%emt 00:00:06]} 6. e3 {[%clk 01:33:03]} {[%emt
00:00:06]} Bd6 {[%clk 01:32:52]} {[%emt 00:00:06]} 7. Bd3 {[%clk 01:32:58]}
{[%emt 00:00:35]} O-O {[%clk 01:33:08]} {[%emt 00:00:13]} 8. Qc2 {[%clk
01:33:20]} {[%emt 00:00:08]} h6 {[%clk 01:33:31]} {[%emt 00:00:07]} 9. Bh4
{[%clk 01:33:42]} {[%emt 00:00:07]} Re8 {[%clk 01:33:52]} {[%emt 00:00:10]} 10.
Nge2 {[%clk 01:33:17]} {[%emt 00:00:54]} a5 {[%clk 01:33:58]} {[%emt 00:00:26]}
11. Bg3 {[%clk 01:27:31]} {[%emt 00:06:15]} Bf8 {[%clk 01:32:31]} {[%emt
00:01:57]} 12. O-O {[%clk 01:22:23]} {[%emt 00:05:38]} Nbd7 {[%clk 01:29:43]}
{[%emt 00:03:18]} 13. Rac1 {[%clk 01:15:52]} {[%emt 00:07:00]} Nh5 {[%clk
01:28:06]} {[%emt 00:02:08]} 14. Rfe1 {[%clk 01:13:54]} {[%emt 00:02:28]} Nxg3
{[%clk 01:27:11]} {[%emt 00:01:25]} 15. Nxg3 {[%clk 01:13:34]} {[%emt
00:00:49]} Nf6 {[%clk 01:25:39]} {[%emt 00:02:03]} 16. Qd2 {[%clk 01:06:48]}
{[%emt 00:07:18]} h5 {[%clk 01:16:51]} {[%emt 00:09:17]} 17. f3 {[%clk
01:04:20]} {[%emt 00:02:58]} h4 {[%clk 01:08:42]} {[%emt 00:08:39]} 18. Nf1
{[%clk 00:52:37]} {[%emt 00:12:12]} Nh5 {[%clk 01:02:16]} {[%emt 00:06:56]} 19.
Qf2 {[%clk 00:50:16]} {[%emt 00:02:51]} b5 {[%clk 00:48:17]} {[%emt 00:14:29]}
20. e4 {[%clk 00:41:06]} {[%emt 00:09:41]} Nf4 {[%clk 00:45:16]} {[%emt
00:03:31]} 21. Bb1 {[%clk 00:38:04]} {[%emt 00:03:33]} Bh3 {[%clk 00:37:55]}
{[%emt 00:07:50]} 22. g3 {[%clk 00:25:05]} {[%emt 00:13:27]} Qg5 {[%clk
00:36:35]} {[%emt 00:01:51]} 23. Qe3 {[%clk 00:20:00]} {[%emt 00:05:36]} Ne6
{[%clk 00:19:29]} {[%emt 00:17:36]} 24. Qxg5 {[%clk 00:19:40]} {[%emt
00:00:49]} Nxg5 {[%clk 00:19:54]} {[%emt 00:00:06]} 25. Kf2 {[%clk 00:19:16]}
{[%emt 00:00:55]} b4 {[%clk 00:16:47]} {[%emt 00:03:37]} 26. Na4 {[%clk
00:09:53]} {[%emt 00:09:53]} dxe4 {[%clk 00:16:34]} {[%emt 00:00:42]} 27. Bxe4
{[%clk 00:09:28]} {[%emt 00:00:55]} Nxe4+ {[%clk 00:16:41]} {[%emt 00:00:23]}
28. Rxe4 {[%clk 00:07:02]} {[%emt 00:02:56]} Rxe4 {[%clk 00:16:00]} {[%emt
00:01:12]} 29. fxe4 {[%clk 00:07:29]} {[%emt 00:00:02]} hxg3+ {[%clk 00:15:49]}
{[%emt 00:00:41]} 30. Nxg3 {[%clk 00:07:31]} {[%emt 00:00:28]} Rd8 {[%clk
00:14:59]} {[%emt 00:01:20]} 31. Ke3 {[%clk 00:06:03]} {[%emt 00:01:59]} g6
{[%clk 00:15:01]} {[%emt 00:00:27]} 32. Rd1 {[%clk 00:04:14]} {[%emt 00:02:18]}
Bh6+ {[%clk 00:13:45]} {[%emt 00:01:47]} 33. Kd3 {[%clk 00:02:50]} {[%emt
00:01:54]} Bg4 {[%clk 00:12:57]} {[%emt 00:01:18]} 34. Re1 {[%clk 00:03:12]}
{[%emt 00:00:07]} Bg7 {[%clk 00:11:23]} {[%emt 00:02:05]} 35. e5 {[%clk
00:03:29]} {[%emt 00:00:13]} Re8 {[%clk 00:06:36]} {[%emt 00:05:18]} 36. Re3
{[%clk 00:02:25]} {[%emt 00:01:33]} Bh6 {[%clk 00:04:50]} {[%emt 00:02:17]} 37.
Re1 {[%clk 00:02:07]} {[%emt 00:00:47]} Be6 {[%clk 00:03:04]} {[%emt 00:02:16]}
38. b3 {[%clk 00:02:09]} {[%emt 00:00:28]} f6 {[%clk 00:01:38]} {[%emt
00:01:56]} 39. Nc5 {[%clk 00:01:08]} {[%emt 00:01:31]} Bd5 {[%clk 00:00:58]}
{[%emt 00:01:10]} 40. Re2 {[%clk 00:00:41]} {[%emt 00:00:57]} fxe5 {[%clk
00:00:40]} {[%emt 00:00:49]} 41. dxe5 {[%clk 00:19:48]} {[%emt 00:11:22]} Rd8
{[%clk 00:24:13]} {[%emt 00:06:58]} 42. Kc2 {[%clk 00:17:40]} {[%emt 00:02:38]}
Bf3 {[%clk 00:21:59]} {[%emt 00:02:43]} 43. Rf2 {[%clk 00:14:41]} {[%emt
00:03:30]} Bd1+ {[%clk 00:20:30]} {[%emt 00:01:58]} 44. Kb1 {[%clk 00:13:16]}
{[%emt 00:01:55]} Be3 {[%clk 00:16:39]} {[%emt 00:04:21]} 45. Ne6 {[%clk
00:11:27]} {[%emt 00:02:19]} Rd5 {[%clk 00:09:29]} {[%emt 00:07:39]} 46. Rf8+
{[%clk 00:08:54]} {[%emt 00:03:04]} Kh7 {[%clk 00:09:49]} {[%emt 00:00:10]} 47.
Ne4 {[%clk 00:07:48]} {[%emt 00:01:35]} g5 {[%clk 00:06:56]} {[%emt 00:03:23]}
48. Nf6+ {[%clk 00:07:10]} {[%emt 00:01:09]} Kg6 {[%clk 00:07:18]} {[%emt
00:00:08]} 49. Nxd5 {[%clk 00:06:30]} {[%emt 00:01:10]} cxd5 {[%clk 00:07:44]}
{[%emt 00:00:05]} 50. Nc7 {[%clk 00:04:44]} {[%emt 00:02:16]} Kg7 {[%clk
00:06:42]} {[%emt 00:01:31]} 51. Rd8 {[%clk 00:04:19]} {[%emt 00:00:54]} d4
{[%clk 00:06:34]} {[%emt 00:00:38]} 52. Ne6+ {[%clk 00:03:27]} {[%emt
00:01:22]} Kf7 {[%clk 00:06:38]} {[%emt 00:00:27]} 53. Nxd4 {[%clk 00:03:52]}
{[%emt 00:00:05]} Bg4 {[%clk 00:05:31]} {[%emt 00:01:37]} 54. e6+ {[%clk
00:03:16]} {[%emt 00:01:06]} Kf6 {[%clk 00:04:58]} {[%emt 00:01:03]} 55. Kc2
{[%clk 00:01:52]} {[%emt 00:01:53]} Bg1 {[%clk 00:05:00]} {[%emt 00:00:28]} 56.
Kd3 {[%clk 00:01:04]} {[%emt 00:01:19]} Bxh2 {[%clk 00:04:47]} {[%emt
00:00:43]} 57. Ke4 {[%clk 00:01:01]} {[%emt 00:00:33]} Bf4 {[%clk 00:02:24]}
{[%emt 00:02:53]} 58. Ra8 {[%clk 00:00:36]} {[%emt 00:00:54]} Bc7 {[%clk
00:02:17]} {[%emt 00:00:39]} 59. Ra7 {[%clk 00:00:50]} {[%emt 00:00:16]} Bb6
{[%clk 00:02:11]} {[%emt 00:00:36]} 60. Rf7+ {[%clk 00:01:09]} {[%emt
00:00:11]} Kg6 {[%clk 00:02:27]} {[%emt 00:00:14]} 61. Nf5 {[%clk 00:00:56]}
{[%emt 00:00:43]} Bh3 {[%clk 00:01:11]} {[%emt 00:01:46]} 62. Ke5 {[%clk
00:01:01]} {[%emt 00:00:25]} Bxf5 {[%clk 00:00:41]} {[%emt 00:01:00]} 63. Rxf5
{[%clk 00:01:25]} {[%emt 00:00:05]} Bc7+ {[%clk 00:01:01]} {[%emt 00:00:11]} 64.
Ke4 {[%clk 00:01:48]} {[%emt 00:00:07]} g4 {[%clk 00:01:20]} {[%emt 00:00:11]}
65. e7 {[%clk 00:01:59]} {[%emt 00:00:19]} 1-0

[Event "NJSK 2026 Meisjes A"]
[Site "Helmond, Netherlands"]
[Date "2026.04.30"]
[Round "6.1"]
[White "Yildirim, Azra"]
[Black "Gergin, Isafara"]
[Result "1/2-1/2"]
[TimeControl "90min/40moves + 30min + 30sec/move"]
[WhiteTitle "-"]
[BlackTitle "-"]
[WhiteFideId "1085670"]
[BlackFideId "1082167"]
[WhiteElo "1560"]
[BlackElo "1915"]

1. e4 {[%clk 01:30:57]} c6 {[%clk 01:30:37]} {[%emt 00:00:22]} 2. d4 {[%clk
01:31:14]} {[%emt 00:00:13]} d5 {[%clk 01:31:02]} {[%emt 00:00:06]} 3. Nc3
{[%clk 01:26:15]} {[%emt 00:05:29]} dxe4 {[%clk 01:31:18]} {[%emt 00:00:13]} 4.
Nxe4 {[%clk 01:26:31]} {[%emt 00:00:15]} Nf6 {[%clk 01:31:43]} {[%emt
00:00:05]} 5. Nxf6+ {[%clk 01:23:23]} {[%emt 00:03:37]} exf6 {[%clk 01:31:22]}
{[%emt 00:00:51]} 6. Nf3 {[%clk 01:22:47]} {[%emt 00:01:06]} Bg4 {[%clk
01:29:59]} {[%emt 00:01:53]} 7. Be2 {[%clk 01:22:37]} {[%emt 00:00:41]} Bd6
{[%clk 01:28:19]} {[%emt 00:02:10]} 8. O-O {[%clk 01:13:53]} {[%emt 00:09:11]}
O-O {[%clk 01:16:18]} {[%emt 00:12:31]} 9. c3 {[%clk 01:10:12]} {[%emt
00:04:11]} Re8 {[%clk 01:11:21]} {[%emt 00:05:26]} 10. Re1 {[%clk 01:04:37]}
{[%emt 00:06:05]} Nd7 {[%clk 01:08:21]} {[%emt 00:03:32]} 11. Bd2 {[%clk
01:00:13]} {[%emt 00:04:54]} Nf8 {[%clk 01:07:12]} {[%emt 00:01:38]} 12. h3
{[%clk 00:52:55]} {[%emt 00:07:48]} Be6 {[%clk 01:05:26]} {[%emt 00:02:16]} 13.
Nh2 {[%clk 00:45:09]} {[%emt 00:08:15]} Ng6 {[%clk 01:01:43]} {[%emt 00:04:13]}
14. Rf1 {[%clk 00:37:36]} {[%emt 00:08:03]} Nf4 {[%clk 00:44:41]} {[%emt
00:17:32]} 15. Bxf4 {[%clk 00:32:27]} {[%emt 00:05:39]} Bxf4 {[%clk 00:45:06]}
{[%emt 00:00:06]} 16. g3 {[%clk 00:25:02]} {[%emt 00:07:56]} Bc7 {[%clk
00:43:02]} {[%emt 00:02:34]} 17. Bd3 {[%clk 00:18:36]} {[%emt 00:06:55]} Qd7
{[%clk 00:36:57]} {[%emt 00:06:35]} 18. Ng4 {[%clk 00:11:29]} {[%emt 00:07:37]}
h5 {[%clk 00:16:38]} {[%emt 00:20:49]} 19. Nxf6+ {[%clk 00:10:26]} {[%emt
00:01:32]} gxf6 {[%clk 00:16:53]} {[%emt 00:00:15]} 20. Qxh5 {[%clk 00:10:41]}
{[%emt 00:00:16]} Kf8 {[%clk 00:16:14]} {[%emt 00:01:09]} 21. Rfe1 {[%clk
00:08:16]} {[%emt 00:02:55]} Ke7 {[%clk 00:13:40]} {[%emt 00:03:04]} 22. Qf3
{[%clk 00:04:37]} {[%emt 00:04:09]} Kd8 {[%clk 00:10:09]} {[%emt 00:04:01]} 23.
Qxf6+ {[%clk 00:03:56]} {[%emt 00:01:11]} Qe7 {[%clk 00:08:57]} {[%emt
00:01:42]} 24. Qxe7+ {[%clk 00:04:12]} {[%emt 00:00:14]} Rxe7 {[%clk 00:09:14]}
{[%emt 00:00:13]} 25. Kg2 {[%clk 00:02:35]} {[%emt 00:02:07]} Kd7 {[%clk
00:08:40]} {[%emt 00:01:05]} 26. Re2 {[%clk 00:01:16]} {[%emt 00:01:48]} Rg8
{[%clk 00:07:11]} {[%emt 00:01:59]} 27. Rae1 {[%clk 00:00:57]} {[%emt
00:00:49]} Ree8 {[%clk 00:07:17]} {[%emt 00:00:23]} 28. b3 {[%clk 00:01:04]}
{[%emt 00:00:24]} b5 {[%clk 00:05:34]} {[%emt 00:02:14]} 29. c4 {[%clk
00:00:52]} {[%emt 00:00:42]} Ba5 {[%clk 00:05:37]} {[%emt 00:00:27]} 30. Rc1
{[%clk 00:00:39]} {[%emt 00:00:42]} a6 {[%clk 00:05:38]} {[%emt 00:00:29]} 31.
Rec2 {[%clk 00:00:34]} {[%emt 00:00:35]} Rh8 {[%clk 00:04:54]} {[%emt
00:01:14]} 32. h4 {[%clk 00:00:54]} {[%emt 00:00:10]} Reg8 {[%clk 00:04:20]}
{[%emt 00:01:04]} 33. Kh2 {[%clk 00:00:53]} {[%emt 00:00:32]} Bc7 {[%clk
00:03:44]} {[%emt 00:01:06]} 34. cxb5 {[%clk 00:00:55]} {[%emt 00:00:27]} Rxh4+
{[%clk 00:03:54]} {[%emt 00:00:19]} 35. Kg1 {[%clk 00:00:51]} {[%emt 00:00:35]}
Bd5 {[%clk 00:02:28]} {[%emt 00:01:56]} 36. bxc6+ {[%clk 00:00:47]} {[%emt
00:00:34]} Kd8 {[%clk 00:02:29]} {[%emt 00:00:28]} 37. Kf1 {[%clk 00:01:05]}
{[%emt 00:00:13]} Rh1+ {[%clk 00:02:34]} {[%emt 00:00:24]} 38. Ke2 {[%clk
00:01:10]} {[%emt 00:00:25]} Re8+ {[%clk 00:02:45]} {[%emt 00:00:19]} 39. Kd2
{[%clk 00:00:36]} {[%emt 00:01:04]} Ba5+ {[%clk 00:02:55]} {[%emt 00:00:20]} 40.
Rc3 {[%clk 00:00:43]} {[%emt 00:00:24]} Bxc6 {[%clk 00:01:45]} {[%emt
00:01:40]} 41. Rxh1 {[%clk 00:00:36]} {[%emt 00:00:37]} Bxh1 {[%clk 00:01:53]}
{[%emt 00:00:21]} 42. Bxa6 {[%clk 00:29:24]} {[%emt 00:01:43]} Re6 {[%clk
00:27:57]} {[%emt 00:04:26]} 43. Bc4 {[%clk 00:23:39]} {[%emt 00:06:15]} Rf6
{[%emt 00:01:52]} 44. f4 {[%clk 00:23:25]} Rg6 {[%clk 00:25:27]} {[%emt
00:02:22]} 45. Kc2 {[%clk 00:22:58]} {[%emt 00:00:58]} Bxc3 {[%clk 00:25:29]}
{[%emt 00:00:27]} 46. Kxc3 {[%clk 00:23:24]} {[%emt 00:00:04]} Rxg3+ {[%clk
00:25:52]} {[%emt 00:00:07]} 47. Kb4 {[%clk 00:23:25]} {[%emt 00:00:29]} f6
{[%clk 00:22:18]} {[%emt 00:04:04]} 48. Kc5 {[%clk 00:14:08]} {[%emt 00:09:47]}
Rg4 {[%clk 00:18:07]} {[%emt 00:04:40]} 49. d5 {[%clk 00:10:15]} {[%emt
00:04:24]} Rxf4 {[%clk 00:14:32]} {[%emt 00:04:05]} 50. a4 {[%clk 00:09:45]}
{[%emt 00:00:59]} Rh4 {[%clk 00:13:31]} {[%emt 00:01:31]} 51. a5 {[%clk
00:05:39]} {[%emt 00:04:38]} Rh8 {[%clk 00:10:03]} {[%emt 00:03:57]} 52. b4
{[%clk 00:03:27]} {[%emt 00:02:42]} Kc7 {[%clk 00:06:38]} {[%emt 00:03:55]} 53.
b5 {[%clk 00:01:32]} {[%emt 00:02:25]} Kb8 {[%clk 00:03:03]} {[%emt 00:04:04]}
54. b6 {[%clk 00:01:02]} {[%emt 00:01:01]} f5 {[%clk 00:01:45]} {[%emt
00:01:49]} 55. a6 {[%clk 00:00:47]} {[%emt 00:00:45]} f4 {[%clk 00:00:57]}
{[%emt 00:01:17]} 56. Bb5 {[%clk 00:00:39]} {[%emt 00:00:38]} f3 {[%clk
00:00:52]} {[%emt 00:00:35]} 57. a7+ {[%clk 00:00:55]} {[%emt 00:00:14]} Kb7
{[%clk 00:01:15]} {[%emt 00:00:07]} 58. Bc6+ {[%clk 00:00:57]} {[%emt
00:00:28]} Ka6 {[%clk 00:01:39]} {[%emt 00:00:06]} 59. Bb5+ {[%clk 00:01:04]}
{[%emt 00:00:23]} Kb7 {[%clk 00:01:40]} {[%emt 00:00:29]} 60. Bc6+ {[%clk
00:01:12]} {[%emt 00:00:22]} Ka6 {[%clk 00:02:05]} {[%emt 00:00:06]} 61. Bb5+
{[%clk 00:01:27]} {[%emt 00:00:15]} Kb7 {[%clk 00:01:29]} {[%emt 00:01:05]}
1/2-1/2

[Event "NJSK 2026 Meisjes A"]
[Site "Helmond, Netherlands"]
[Date "2026.04.30"]
[Round "6.2"]
[White "Damen, Josephine"]
[Black "Kulikova, Polina"]
[Result "1-0"]
[TimeControl "90min/40moves + 30min + 30sec/move"]
[WhiteTitle "-"]
[BlackTitle "-"]
[WhiteFideId "1074369"]
[BlackFideId "1085921"]
[WhiteElo "1982"]
[BlackElo "1766"]

1. e4 {[%clk 01:30:57]} {[%emt 00:00:02]} c6 {[%clk 01:30:59]} {[%emt
00:00:02]} 2. d4 {[%clk 01:31:21]} {[%emt 00:00:07]} d5 {[%clk 01:31:28]} 3.
exd5 {[%clk 01:31:46]} {[%emt 00:00:05]} cxd5 {[%clk 01:31:57]} {[%emt
00:00:04]} 4. c4 {[%clk 01:32:08]} {[%emt 00:00:05]} Nf6 {[%clk 01:32:24]}
{[%emt 00:00:02]} 5. Nc3 {[%clk 01:32:32]} {[%emt 00:00:06]} e6 {[%clk
01:32:50]} {[%emt 00:00:04]} 6. Nf3 {[%clk 01:32:51]} {[%emt 00:00:11]} Nc6
{[%clk 01:32:59]} {[%emt 00:00:21]} 7. c5 {[%clk 01:33:17]} {[%emt 00:00:04]}
b6 {[%clk 01:30:50]} {[%emt 00:02:39]} 8. Bb5 {[%clk 01:21:54]} {[%emt
00:11:53]} Bd7 {[%clk 01:27:41]} {[%emt 00:03:39]} 9. Qa4 {[%clk 01:03:55]}
{[%emt 00:18:27]} Qc7 {[%clk 01:21:44]} {[%emt 00:06:26]} 10. Bf4 {[%clk
00:47:55]} {[%emt 00:16:30]} Qxf4 {[%clk 01:03:59]} {[%emt 00:18:15]} 11. Bxc6
{[%clk 00:48:19]} {[%emt 00:00:06]} bxc5 {[%clk 00:21:01]} {[%emt 00:43:28]} 12.
Ne5 {[%clk 00:28:39]} {[%emt 00:20:09]} Rd8 {[%clk 00:21:00]} {[%emt 00:00:32]}
13. Nb5 {[%clk 00:27:02]} {[%emt 00:02:08]} Be7 {[%clk 00:14:01]} {[%emt
00:07:29]} 14. Bxd7+ {[%clk 00:18:00]} {[%emt 00:09:31]} Nxd7 {[%clk 00:13:38]}
{[%emt 00:00:53]} 15. Nc7+ {[%clk 00:18:12]} {[%emt 00:00:18]} Kf8 {[%clk
00:13:58]} {[%emt 00:00:11]} 16. Nxd7+ {[%clk 00:17:32]} {[%emt 00:01:10]} Kg8
{[%clk 00:14:22]} {[%emt 00:00:06]} 17. Na6 {[%clk 00:12:14]} {[%emt 00:05:48]}
Bh4 {[%clk 00:10:36]} {[%emt 00:04:16]} 18. O-O {[%clk 00:11:11]} {[%emt
00:01:33]} cxd4 {[%clk 00:10:32]} {[%emt 00:00:34]} 19. Nac5 {[%clk 00:10:12]}
{[%emt 00:01:29]} Be7 {[%clk 00:10:00]} {[%emt 00:01:01]} 20. g3 {[%clk
00:07:03]} {[%emt 00:03:39]} Qf3 {[%clk 00:07:23]} {[%emt 00:03:07]} 21. Qxd4
{[%clk 00:06:35]} {[%emt 00:00:58]} h5 {[%clk 00:07:09]} {[%emt 00:00:43]} 22.
Rae1 {[%clk 00:04:08]} {[%emt 00:02:58]} g5 {[%clk 00:05:27]} {[%emt 00:02:13]}
23. Qe5 {[%clk 00:03:02]} {[%emt 00:01:35]} d4 {[%clk 00:03:48]} {[%emt
00:02:10]} 24. Nxe6 {[%clk 00:01:54]} {[%emt 00:01:37]} Rxd7 {[%emt 00:03:10]}
25. Qg7# {[%clk 00:01:46]} {[%emt 00:00:05]} 1-0

[Event "NJSK 2026 Meisjes A"]
[Site "Helmond, Netherlands"]
[Date "2026.04.30"]
[Round "6.4"]
[White "Feng, Elysia"]
[Black "Westerhof, Fleur"]
[Result "1-0"]
[TimeControl "90min/40moves + 30min + 30sec/move"]
[WhiteTitle "-"]
[BlackTitle "-"]
[WhiteFideId "1074334"]
[BlackFideId "1080369"]
[WhiteElo "1912"]
[BlackElo "1968"]

1. e4 {[%clk 01:30:58]} {[%emt 00:00:01]} c5 {[%clk 01:30:53]} {[%emt
00:00:08]} 2. Nf3 {[%clk 01:31:23]} {[%emt 00:00:05]} d6 {[%clk 01:31:14]}
{[%emt 00:00:11]} 3. d4 {[%clk 01:31:46]} {[%emt 00:00:03]} cxd4 {[%clk
01:31:38]} {[%emt 00:00:07]} 4. Nxd4 {[%clk 01:32:10]} {[%emt 00:00:06]} Nf6
{[%clk 01:31:56]} {[%emt 00:00:12]} 5. Nc3 {[%clk 01:32:32]} {[%emt 00:00:07]}
a6 {[%clk 01:32:16]} {[%emt 00:00:10]} 6. Be3 {[%clk 01:32:52]} {[%emt
00:00:10]} e6 {[%clk 01:32:39]} {[%emt 00:00:08]} 7. f3 {[%clk 01:32:52]}
{[%emt 00:00:29]} h5 {[%clk 01:33:01]} {[%emt 00:00:09]} 8. Qd2 {[%clk
01:31:56]} {[%emt 00:01:25]} Be7 {[%clk 01:32:09]} {[%emt 00:01:23]} 9. O-O-O
{[%clk 01:29:16]} {[%emt 00:03:10]} b5 {[%clk 01:31:41]} {[%emt 00:00:58]} 10.
Bd3 {[%clk 01:18:13]} {[%emt 00:11:32]} Bb7 {[%clk 01:30:17]} {[%emt 00:01:52]}
11. h3 {[%clk 01:15:37]} {[%emt 00:03:06]} Nbd7 {[%clk 01:19:37]} {[%emt
00:11:11]} 12. g4 {[%clk 01:14:37]} {[%emt 00:01:31]} Nc5 {[%clk 01:18:33]}
{[%emt 00:01:34]} 13. g5 {[%clk 01:10:41]} {[%emt 00:04:26]} Nfd7 {[%clk
01:17:52]} {[%emt 00:01:09]} 14. g6 {[%clk 01:10:29]} {[%emt 00:00:43]} f6
{[%clk 01:03:02]} {[%emt 00:15:20]} 15. Kb1 {[%clk 01:09:40]} {[%emt 00:01:19]}
Nf8 {[%clk 00:56:12]} {[%emt 00:07:20]} 16. Rhg1 {[%clk 01:06:55]} {[%emt
00:03:15]} Nxd3 {[%clk 00:54:06]} {[%emt 00:02:36]} 17. Qxd3 {[%clk 01:04:57]}
{[%emt 00:02:29]} Rc8 {[%clk 00:46:43]} {[%emt 00:07:53]} 18. Qd2 {[%clk
00:57:35]} {[%emt 00:07:52]} Rc4 {[%clk 00:37:37]} {[%emt 00:09:36]} 19. Nce2
{[%clk 00:51:39]} {[%emt 00:06:25]} Kd7 {[%clk 00:29:42]} {[%emt 00:08:25]} 20.
b3 {[%clk 00:29:16]} {[%emt 00:22:53]} Rc8 {[%clk 00:28:12]} {[%emt 00:02:00]}
21. Nf4 {[%clk 00:25:41]} {[%emt 00:04:06]} Qc7 {[%clk 00:14:39]} {[%emt
00:14:03]} 22. h4 {[%clk 00:20:51]} {[%emt 00:05:20]} e5 {[%clk 00:09:31]}
{[%emt 00:05:38]} 23. Nf5 {[%clk 00:21:04]} {[%emt 00:00:17]} exf4 {[%clk
00:09:39]} {[%emt 00:00:21]} 24. Bxf4 {[%clk 00:21:32]} {[%emt 00:00:02]} Qc3
{[%clk 00:08:18]} {[%emt 00:01:52]} 25. Qh2 {[%clk 00:18:43]} {[%emt 00:03:19]}
Rc6 {[%clk 00:06:49]} {[%emt 00:01:59]} 26. Bxd6 {[%clk 00:18:01]} {[%emt
00:01:11]} Bxd6 {[%clk 00:04:44]} {[%emt 00:02:36]} 27. Rxd6+ {[%clk 00:17:33]}
{[%emt 00:00:58]} Kc7 {[%clk 00:03:22]} {[%emt 00:01:52]} 28. Rxc6+ {[%clk
00:17:56]} {[%emt 00:00:06]} Kxc6 {[%clk 00:03:46]} {[%emt 00:00:06]} 29. Qd6#
{[%clk 00:17:48]} {[%emt 00:00:04]} 1-0